bitfinex/quotes_ETHUSD_20240926
["timestamp","ask_amount","ask_price","bid_price","bid_amount"]
[1727310045467,3.85823,2591.9,2591.7,2.53695208]
[1727310047579,3.85823,2591.9,2591.7,1.2325]
[1727310049560,7.71595,2592.1,2591.7,1.2325]
[1727310049762,3.85805,2592.0,2591.8,0.08880393]
[1727310051333,3.85817,2591.9,2591.8,0.08880393]
[1727310051539,3.85806,2592.0,2591.8,0.08880393]
[1727310051739,3.85817,2591.9,2591.8,0.08880393]
[1727310052247,7.71595,2592.1,2591.8,0.08880393]
[1727310052450,3.85807,2592.0,2591.8,0.08880393]
[1727310052660,3.85817,2591.9,2591.8,0.08880393]
[1727310053864,3.85797,2592.1,2591.8,0.08880393]
[1727310054067,3.85805,2592.0,2591.8,0.08880393]
[1727310055758,3.85817,2591.9,2591.8,0.08880393]
[1727310056083,4.243987,2591.9,2591.8,0.08880393]
[1727310056287,3.85803,2592.0,2591.5,1.2693]
[1727310056452,3.85803,2592.0,2591.6,0.0887458]
[1727310056453,3.85833,2591.8,2591.6,0.0887458]
[1727310058018,3.85847,2591.7,2591.6,0.0887458]
[1727310058656,3.85862,2591.6,2591.3,1.187]
[1727310062855,3.85839,2591.8,2591.4,1.2946]
[1727310063252,3.85812,2592.0,2591.4,1.37177275]
[1727310063253,3.85818,2591.9,2591.4,1.37177275]
[1727310063569,1.2124,2592.2,2591.6,1.2948]
[1727310063741,3.85805,2592.0,2591.6,1.2948]
[1727310063965,3.85805,2592.0,2591.7,0.901218]
[1727310064453,3.85805,2592.0,2591.8,0.08903646]
[1727310065989,3.85792,2592.1,2591.9,1.2387]
[1727310066293,3.85792,2592.1,2592.0,0.08888144]
[1727310067151,8.76023914,2592.1,2592.0,0.08888144]
[1727310067406,11.87428312,2592.1,2592.0,0.08888144]
[1727310067686,3.85906,2591.3,2590.7,1.1991]
[1727310067881,8.04087914,2591.3,2591.2,0.11744105]
[1727310068184,8.93824814,2591.3,2591.2,0.0374999]
[1727310068392,11.93824814,2591.3,2591.2,0.0374999]
[1727310068857,14.36667337,2591.3,2591.2,0.0374999]
[1727310069049,15.64147337,2591.3,2591.2,0.0374999]
[1727310069282,13.21304814,2591.3,2591.2,0.0374999]
[1727310069975,15.640692,2591.3,2591.2,0.0374999]
[1727310070163,13.21304814,2591.3,2591.2,0.0374999]
[1727310071271,9.581229,2591.3,2591.2,0.0374999]
[1727310071596,8.68386,2591.3,2591.2,0.0374999]
[1727310071774,12.31567914,2591.3,2591.2,0.0374999]
[1727310074364,4.40906,2591.3,2591.2,0.0374999]
[1727310075797,3.85906,2591.3,2591.2,0.0374999]
[1727310077326,3.85906,2591.3,2591.2,0.11537835]
[1727310078377,3.85906,2591.3,2591.2,0.0374999]
[1727310078583,3.85906,2591.3,2591.2,0.11537835]
[1727310079091,3.85906,2591.3,2591.2,0.0374999]
[1727310079491,3.85906,2591.3,2591.2,0.11537835]
[1727310080532,3.85871,2591.6,2591.2,0.11537835]
[1727310080911,3.85871,2591.6,2591.2,1.02856505]
[1727310081613,3.85879,2591.5,2591.2,1.02856505]
[1727310081824,3.85871,2591.6,2591.2,0.11537835]
[1727310082721,3.85878,2591.5,2591.2,0.11537835]
[1727310082882,3.85871,2591.6,2591.2,0.11537835]
[1727310082883,3.85892,2591.4,2591.2,0.11537835]
[1727310083223,3.85879,2591.5,2591.2,0.11537835]
[1727310083383,3.85879,2591.5,2591.2,0.63493618]
[1727310087024,3.85871,2591.6,2591.2,0.63493618]
[1727310087680,3.85856,2591.7,2591.2,0.63493618]
[1727310088323,3.85862,2591.6,2591.2,0.63493618]
[1727310088487,3.85862,2591.6,2591.3,0.57148562]
[1727310088683,7.71732,2591.6,2591.4,0.07806221]
[1727310089095,3.85876,2591.5,2591.4,0.07806221]
[1727310089786,3.85876,2591.5,2591.2,0.0374999]
[1727310089986,3.85876,2591.5,2591.4,0.07804285]
[1727310090186,3.85876,2591.5,2591.2,0.0374999]
[1727310090396,3.85876,2591.5,2591.4,0.07804285]
[1727310090695,3.85876,2591.5,2591.2,0.55698378]
[1727310091005,3.85876,2591.5,2591.2,0.0374999]
[1727310092455,3.85906,2591.3,2591.2,0.0374999]
[1727310093043,9.31077914,2591.3,2591.2,0.0374999]
[1727310094638,9.31077914,2591.3,2591.2,0.11528137]
[1727310094840,9.31077914,2591.3,2591.2,0.0374999]
[1727310095025,10.87018361,2591.3,2591.2,0.11528137]
[1727310095349,10.87018361,2591.3,2591.2,0.0374999]
[1727310095505,16.29452919,2591.3,2591.2,0.0374999]
[1727310095707,13.87018361,2591.3,2591.2,0.0374999]
[1727310096065,16.29540107,2591.3,2591.2,0.0374999]
[1727310096211,13.87018361,2591.3,2591.2,0.0374999]
[1727310097418,16.29540107,2591.3,2591.2,0.0374999]
[1727310097645,13.87018361,2591.3,2591.2,0.0374999]
[1727310097939,16.29540107,2591.3,2591.2,0.0374999]
[1727310098150,13.87018361,2591.3,2591.2,0.0374999]
[1727310098320,16.29540107,2591.3,2591.2,0.0374999]
[1727310098517,13.87018361,2591.3,2591.2,0.0374999]
[1727310098725,16.29540107,2591.3,2591.2,0.0374999]
[1727310099054,13.87018361,2591.3,2591.2,0.0374999]
[1727310100122,13.87018361,2591.3,2590.4,0.0374999]
[1727310100123,5.69845,2590.5,2590.4,0.0374999]
[1727310100433,9.33026914,2590.5,2590.4,0.0374999]
[1727310103082,12.33026914,2590.5,2590.4,0.0374999]
[1727310103262,14.7539842,2590.5,2590.4,0.0374999]
[1727310103953,12.33026914,2590.5,2590.4,0.0374999]
[1727310104153,13.92055312,2590.5,2590.4,0.0374999]
[1727310104825,16.34426818,2590.5,2590.4,0.0374999]
[1727310105023,16.34426818,2590.5,2589.6,0.0374999]
[1727310105024,5.13925,2589.7,2589.6,0.0374999]
[1727310105224,9.32106914,2589.7,2589.6,0.0374999]
[1727310107276,10.63930605,2589.7,2589.6,0.0374999]
[1727310108134,13.63930605,2589.7,2589.6,0.0374999]
[1727310118875,8.72968691,2589.7,2589.6,0.0374999]
[1727310119188,12.36150605,2589.7,2589.6,0.0374999]
[1727310120415,13.59060605,2589.7,2589.6,0.0374999]
[1727310120782,13.59060605,2589.7,2588.9,0.0374999]
[1727310120783,5.09159,2589.0,2588.9,0.0374999]
[1727310120985,9.27340914,2589.0,2588.9,0.0374999]
[1727310121319,12.27340914,2589.0,2588.9,0.0374999]
[1727310123582,12.27340914,2589.0,2588.1,0.0374999]
[1727310123583,4.41368,2588.2,2588.1,0.0374999]
[1727310123823,8.04549914,2588.2,2588.1,0.0374999]
[1727310124180,8.04549914,2588.2,2587.8,1.2956]
[1727310124181,0.55,2588.1,2587.8,1.34502855]
[1727310124390,0.55,2588.0,2587.8,1.34502855]
[1727310124726,7.72786,2588.1,2587.8,1.34502855]
[1727310124727,3.86389,2588.1,2587.9,0.0762325]
[1727310125079,7.72787,2588.1,2587.8,1.34502855]
[1727310125281,3.86389,2588.1,2588.0,0.0762325]
[1727310125502,3.86389,2588.1,2587.8,1.34502855]
[1727310125686,3.86413,2587.9,2587.8,1.34502855]
[1727310126739,0.55,2588.0,2587.8,1.34502855]
[1727310127783,7.7273,2588.3,2587.8,1.34502855]
[1727310128074,0.55,2588.2,2587.8,1.34502855]
[1727310128554,5.11354,2588.6,2587.8,1.34502855]
[1727310128555,4.88221914,2588.6,2587.8,1.34502855]
[1727310128750,4.59028398,2588.9,2587.8,1.34502855]
[1727310128751,3.86331,2588.5,2588.0,5.13039]
[1727310129081,8.99068,2588.9,2588.2,1.2665]
[1727310129242,3.86295,2588.7,2588.3,0.513032]
[1727310129441,3.86295,2588.7,2588.2,1.2665]
[1727310129650,3.86279,2588.8,2588.2,5.13015]
[1727310129994,3.86265,2588.9,2588.3,1.2665]
[1727310130199,3.86265,2588.9,2588.3,5.643035]
[1727310130487,3.86243,2589.1,2588.6,3.86309]
[1727310130657,3.86243,2589.1,2588.5,1.2079]
[1727310130658,3.63181914,2589.2,2588.5,1.2079]
[1727310130858,3.86273,2588.9,2588.5,1.21585325]
[1727310131086,3.86244,2589.1,2588.5,1.21585325]
[1727310131586,3.86265,2588.9,2588.5,1.21585325]
[1727310131787,3.86244,2589.1,2588.5,1.77506608]
[1727310131992,3.86237,2589.1,2588.6,1.2079]
[1727310132281,7.72431,2589.3,2588.6,5.07089]
[1727310132445,3.86214,2589.3,2588.8,3.86277]
[1727310132645,3.86214,2589.3,2588.9,1.2079]
[1727310133476,3.8623,2589.2,2588.9,1.2079]
[1727310133889,3.86214,2589.3,2588.9,1.2079]
[1727310134091,3.86171,2589.6,2589.0,5.0756]
[1727310134264,1.1856,2590.0,2588.9,3.93980457]
[1727310134265,7.72302,2589.7,2589.1,1.2132]
[1727310134586,3.86185,2589.5,2589.1,1.2132]
[1727310135203,7.7237,2589.5,2589.1,1.2132]
[1727310135484,3.86185,2589.5,2589.1,1.2132]
[1727310135671,3.86184,2589.5,2589.1,1.2132]
[1727310135847,8.24302505,2589.5,2589.1,1.2132]
[1727310136047,0.55,2589.4,2589.1,1.2132]
[1727310136268,3.86214,2589.3,2589.1,1.2132]
[1727310137364,0.55,2589.2,2588.7,1.2919]
[1727310137680,4.4126,2589.0,2588.7,1.2919]
[1727310138658,3.86272,2588.9,2588.7,1.2919]
[1727310139092,3.86279,2588.8,2588.7,1.2919]
[1727310139255,3.86294,2588.7,2588.6,0.00795325]
[1727310139592,9.18051405,2588.7,2588.6,0.0840983]
[1727310139903,5.54869491,2588.7,2588.6,0.0840983]
[1727310141365,9.18051405,2588.7,2588.6,0.0840983]
[1727310141602,9.18051405,2588.7,2588.6,0.00795325]
[1727310142461,13.41111405,2588.7,2588.6,0.00795325]
[1727310148206,3.86413,2587.9,2587.8,0.0414753]
[1727310148364,9.29494914,2587.9,2587.8,0.0414753]
[1727310148706,12.29494914,2587.9,2587.8,0.0414753]
[1727310149062,12.29494914,2587.9,2586.9,1.3562753]
[1727310149063,3.86548,2587.0,2586.9,0.0414753]
[1727310149402,8.04729914,2587.0,2586.9,0.0414753]
[1727310149600,11.04729914,2587.0,2586.9,0.0414753]
[1727310151206,12.24699914,2587.0,2586.9,0.0414753]
[1727310152831,11.04729914,2587.0,2586.9,0.0414753]
[1727310153186,12.18305405,2587.0,2586.9,0.0414753]
[1727310154635,3.86511,2587.3,2586.9,0.0414753]
[1727310154832,3.8651,2587.3,2586.9,0.0414753]
[1727310154993,3.8651,2587.3,2587.0,0.06871727]
[1727310155396,3.86533,2587.1,2587.0,0.06871727]
[1727310155606,3.8651,2587.3,2587.0,0.06871727]
[1727310156945,4.41529,2587.2,2587.0,0.06871727]
[1727310159612,3.86533,2587.1,2587.0,0.06871727]
[1727310160160,4.41519,2587.2,2587.0,0.06871727]
[1727310160515,8.28046,2587.2,2587.0,0.06871727]
[1727310161411,4.41519,2587.2,2587.0,0.06871727]
[1727310161615,8.28047,2587.2,2587.0,0.06871727]
[1727310161962,4.41519,2587.2,2587.0,0.06871727]
[1727310162554,8.28045,2587.2,2587.0,0.06871727]
[1727310163053,4.41519,2587.2,2587.0,0.06871727]
[1727310163920,8.28047,2587.2,2587.0,0.06871727]
[1727310164127,3.86533,2587.1,2587.0,0.06871727]
[1727310165664,1.3128,2587.7,2587.2,3.86509]
[1727310165665,3.86448,2587.7,2587.2,3.86509]
[1727310165870,3.86423,2587.9,2587.3,4.382869]
[1727310166039,3.86393,2588.1,2587.5,3.86464]
[1727310166358,3.86393,2588.1,2587.6,0.06734723]
[1727310166719,7.72731,2588.3,2587.6,0.06734723]
[1727310166927,3.86372,2588.2,2587.8,1.3148]
[1727310167346,3.86372,2588.2,2587.9,0.06713354]
[1727310167545,3.86387,2588.1,2587.9,0.06713354]
[1727310168395,3.86372,2588.2,2587.9,0.06713354]
[1727310168582,3.86398,2588.0,2587.9,0.06713354]
[1727310169449,3.86372,2588.2,2587.9,0.06713354]
[1727310169637,7.7275,2588.2,2587.9,0.06713354]
[1727310170449,3.86372,2588.2,2587.9,0.06713354]
[1727310172050,7.72752,2588.2,2587.9,0.06713354]
[1727310172461,3.86372,2588.2,2587.9,0.06713354]
[1727310172884,7.72751,2588.2,2587.9,0.06713354]
[1727310173888,7.72753,2588.2,2587.9,0.06713354]
[1727310174193,3.86386,2588.1,2587.9,0.06713354]
[1727310174557,7.72784,2588.1,2587.9,0.06713354]
[1727310174758,3.86386,2588.1,2587.9,0.06713354]
[1727310175751,3.86361,2588.3,2587.9,0.06713354]
[1727310176953,7.72728,2588.3,2587.9,0.59175489]
[1727310177154,3.86361,2588.3,2587.9,0.59175489]
[1727310177678,3.86333,2588.5,2587.9,0.59175489]
[1727310177883,3.86333,2588.5,2588.0,5.12458]
[1727310178397,3.8634,2588.4,2588.1,0.06631784]
[1727310180525,3.86368,2588.2,2588.1,0.06631784]
[1727310180686,3.8634,2588.4,2588.1,0.06631784]
[1727310181188,7.7269,2588.4,2588.1,0.06631784]
[1727310181389,3.86368,2588.2,2588.1,0.06631784]
[1727310182418,3.8634,2588.4,2588.1,0.06631784]
[1727310182419,3.86359,2588.3,2588.1,0.06631784]
[1727310182921,4.41368,2588.2,2588.1,0.06631784]
[1727310183723,3.86408,2588.0,2587.8,1.2297]
[1727310183921,3.86413,2587.9,2587.8,1.2297]
[1727310184139,3.86393,2588.1,2587.8,1.2297]
[1727310184421,3.86413,2587.9,2587.7,1.2297]
[1727310184821,4.41413,2587.9,2587.8,0.06560903]
[1727310186120,3.86441,2587.8,2587.6,7.44]
[1727310186325,3.86441,2587.8,2587.5,1.1874]
[1727310186530,3.86441,2587.8,2587.3,1.1874]
[1727310186531,3.86467,2587.6,2587.3,1.1874]
[1727310186704,3.86451,2587.7,2587.3,1.1874]
[1727310187288,7.72907,2587.7,2587.3,1.1874]
[1727310187817,3.86461,2587.6,2587.3,1.1874]
[1727310188306,3.86451,2587.7,2587.3,1.1874]
[1727310188307,7.72907,2587.7,2587.3,1.1874]
[1727310188516,3.86451,2587.7,2587.3,1.1874]
[1727310188890,4.41437,2587.8,2587.3,5.05242]
[1727310189306,3.86443,2587.7,2587.3,1.1874]
[1727310191023,7.72895,2587.7,2587.3,1.1874]
[1727310191228,3.86443,2587.7,2587.3,1.1874]
[1727310191795,4.41429,2587.8,2587.3,5.0524]
[1727310192393,0.55,2587.8,2587.3,5.0524]
[1727310192593,4.41429,2587.8,2587.3,5.0524]
[1727310193131,3.86429,2587.8,2587.3,5.0524]
[1727310193316,7.72849,2587.9,2587.3,5.94714704]
[1727310193548,0.55,2587.9,2587.3,2.08214704]
[1727310193694,3.86452,2587.7,2587.3,1.1874]
[1727310193892,0.55,2587.9,2587.3,1.1874]
[1727310194091,0.55,2587.9,2587.2,1.2786004]
[1727310194092,3.86481,2587.5,2587.2,1.2786004]
[1727310194725,3.86502,2587.4,2587.2,0.0298004]
[1727310195098,3.86503,2587.3,2587.2,0.0298004]
[1727310195438,4.41503,2587.3,2587.2,0.0298004]
[1727310195640,5.73114391,2587.3,2587.2,0.0298004]
[1727310196420,3.86489,2587.4,2587.2,0.0298004]
[1727310196625,7.72985,2587.4,2587.2,0.0298004]
[1727310196825,3.86489,2587.4,2587.2,0.0298004]
[1727310197604,3.86503,2587.3,2587.2,0.0298004]
[1727310198004,3.86489,2587.4,2587.2,1.2415004]
[1727310198216,3.86467,2587.6,2587.2,1.2415004]
[1727310198810,7.72938,2587.6,2587.2,1.2415004]
[1727310199745,7.72938,2587.6,2587.3,0.06432982]
[1727310200047,3.86467,2587.6,2587.2,1.2415004]
[1727310200202,3.86473,2587.5,2587.3,0.06432982]
[1727310200402,3.86473,2587.5,2587.2,1.2415004]
[1727310200603,3.86473,2587.5,2587.3,0.06432982]
[1727310200902,3.86473,2587.5,2587.2,1.2415004]
[1727310201678,3.86473,2587.5,2587.3,0.06432982]
[1727310202020,3.86473,2587.5,2587.4,0.06432982]
[1727310202614,3.86473,2587.5,2587.2,1.2415004]
[1727310202825,3.86473,2587.5,2587.3,0.06432982]
[1727310203021,3.86473,2587.5,2587.2,1.2415004]
[1727310203304,3.86473,2587.5,2587.3,0.06432982]
[1727310203738,3.86473,2587.5,2587.2,1.2415004]
[1727310203942,3.86473,2587.5,2587.4,0.06432982]
[1727310204100,3.86473,2587.5,2587.2,1.2415004]
[1727310204310,3.86473,2587.5,2587.4,0.06432982]
[1727310204551,3.86489,2587.4,2587.2,1.2415004]
[1727310208841,4.05000105,2587.8,2587.2,1.2415004]
[1727310208842,0.41818191,2587.8,2587.2,1.2415004]
[1727310209023,3.8641,2588.0,2587.5,5.14965]
[1727310209347,3.8641,2588.0,2587.6,0.514965]
[1727310211975,3.86394,2588.1,2587.6,4.379505]
[1727310212459,3.86394,2588.1,2587.6,0.514965]
[1727310212832,3.86394,2588.1,2587.6,4.379505]
[1727310213031,3.86399,2588.0,2587.6,0.514965]
[1727310214130,3.86399,2588.0,2587.5,1.285]
[1727310214357,3.62514945,2588.4,2587.5,1.285]
[1727310214358,3.86424,2587.9,2587.5,1.285]
[1727310214753,3.86424,2587.9,2587.6,0.06363133]
[1727310214949,3.86443,2587.7,2587.6,0.06363133]
[1727310215266,3.86428,2587.8,2587.3,1.2431]
[1727310215570,7.72867,2587.8,2587.4,0.06370892]
[1727310215751,0.55,2587.9,2587.4,0.06370892]
[1727310216113,3.86408,2588.0,2587.4,0.06370892]
[1727310216279,3.86415,2587.9,2587.4,4.58214288]
[1727310217126,3.86415,2587.9,2587.5,1.2471]
[1727310217742,3.86415,2587.9,2587.6,0.06377682]
[1727310220582,3.86431,2587.8,2587.6,0.06377682]
[1727310221281,7.72872,2587.8,2587.6,0.06377682]
[1727310221775,3.86431,2587.8,2587.6,0.06377682]
[1727310221977,3.86443,2587.7,2587.6,0.06377682]
[1727310223686,4.637304,2587.7,2587.6,0.06377682]
[1727310223852,4.637304,2587.7,2587.2,1.2298004]
[1727310224177,8.76010914,2588.1,2587.3,0.06371862]
[1727310224178,3.86473,2587.5,2587.3,0.06371862]
[1727310224552,3.86473,2587.5,2587.2,1.2298004]
[1727310225081,0.55,2587.9,2587.3,0.06376712]
[1727310225280,3.86455,2587.7,2587.3,0.06376712]
[1727310225575,3.86455,2587.7,2587.2,1.2298004]
[1727310225740,3.86473,2587.5,2587.4,0.06376712]
[1727310225960,3.86473,2587.5,2587.2,1.2298004]
[1727310226373,3.86473,2587.5,2587.4,0.06376712]
[1727310226847,3.86473,2587.5,2587.2,1.2298004]
[1727310227085,3.86473,2587.5,2587.3,0.06376712]
[1727310227248,3.86473,2587.5,2587.2,1.2298004]
[1727310227450,3.86473,2587.5,2587.3,0.06376712]
[1727310227778,3.86473,2587.5,2587.2,1.2298004]
[1727310227941,7.72905,2587.7,2587.4,0.06376712]
[1727310228143,3.86461,2587.6,2587.2,1.2298004]
[1727310228380,3.86461,2587.6,2587.5,0.06376712]
[1727310228542,3.86461,2587.6,2587.2,1.2298004]
[1727310228744,3.86461,2587.6,2587.5,0.06376712]
[1727310228944,3.86461,2587.6,2587.2,1.2298004]
[1727310229155,3.86461,2587.6,2587.5,0.06376712]
[1727310229380,3.86461,2587.6,2587.2,1.2298004]
[1727310229588,3.86461,2587.6,2587.5,0.06376712]
[1727310229740,3.86461,2587.6,2587.2,1.2298004]
[1727310229943,3.86461,2587.6,2587.5,0.06376712]
[1727310230181,4.761988,2587.6,2587.2,1.2298004]
[1727310230497,5.10917,2587.7,2587.2,1.2298004]
[1727310230700,3.86474,2587.5,2587.3,0.06377682]
[1727310230852,3.86474,2587.5,2587.2,1.2298004]
[1727310231051,3.86474,2587.5,2587.3,0.06377682]
[1727310231291,3.86474,2587.5,2587.2,1.2298004]
[1727310231529,3.86474,2587.5,2587.3,0.06377682]
[1727310232018,3.86458,2587.6,2587.2,1.2298004]
[1727310232225,5.10917,2587.7,2587.4,0.06377682]
[1727310232427,5.10917,2587.7,2587.2,1.2298004]
[1727310232428,3.8646,2587.6,2587.2,1.2298004]
[1727310233030,3.8646,2587.6,2587.3,0.06377682]
[1727310233386,5.10917,2587.7,2587.2,5.0949004]
[1727310233588,3.86447,2587.7,2587.2,5.0949004]
[1727310234003,7.72901,2587.7,2587.2,5.0949004]
[1727310234330,3.86447,2587.7,2587.2,5.0949004]
[1727310234835,7.72901,2587.7,2587.2,1.2298004]
[1727310236209,8.7453635,2587.7,2587.2,1.2298004]
[1727310236938,4.8808235,2587.7,2587.2,1.2298004]
[1727310237116,3.86471,2587.6,2587.2,1.2298004]
[1727310239718,3.86468,2587.6,2587.2,1.2298004]
[1727310240426,7.72937,2587.6,2587.2,1.2298004]
[1727310240652,3.86468,2587.6,2587.2,1.2298004]
[1727310243842,4.8807835,2587.7,2587.2,1.2298004]
[1727310244051,3.86443,2587.7,2587.2,1.2298004]
[1727310244630,3.86443,2587.7,2587.2,5.0948704]
[1727310244825,3.86443,2587.7,2587.3,0.06221412]
[1727310245235,3.86431,2587.8,2587.3,3.86492]
[1727310245455,3.86431,2587.8,2587.5,1.2485]
[1727310245833,3.86431,2587.8,2587.6,0.06219472]
[1727310246060,4.41458,2587.7,2587.6,0.06219472]
[1727310246302,4.41458,2587.7,2587.2,1.2308004]
[1727310246303,3.86483,2587.5,2587.2,1.2308004]
[1727310246502,7.72964,2587.5,2587.3,0.06210742]
[1727310246686,3.86481,2587.5,2587.2,1.2308004]
[1727310246886,3.86478,2587.5,2587.3,0.06210742]
[1727310247067,3.86478,2587.5,2587.2,1.2308004]
[1727310247401,3.86478,2587.5,2587.3,0.06210742]
[1727310247719,3.865,2587.4,2587.2,1.2308004]
[1727310247874,9.35624914,2587.3,2587.2,0.0298004]
[1727310248075,11.79190433,2587.3,2587.2,0.0298004]
[1727310248407,11.04170142,2587.3,2587.2,0.0298004]
[1727310248860,5.98050747,2587.3,2587.2,0.0298004]
[1727310249061,0.55,2587.3,2587.2,0.0298004]
[1727310250018,6.30032519,2587.6,2587.2,0.0298004]
[1727310250188,4.41481,2587.5,2587.2,0.0298004]
[1727310250387,3.86489,2587.4,2587.2,0.0298004]
[1727310251486,7.72986,2587.4,2587.2,0.0298004]
[1727310251686,3.86489,2587.4,2587.2,0.0298004]
[1727310252121,6.23731252,2587.4,2587.2,0.0298004]
[1727310252333,3.86503,2587.3,2587.2,0.0298004]
[1727310252686,4.41503,2587.3,2587.2,0.0298004]
[1727310252920,5.71593,2587.3,2587.2,0.0298004]
[1727310253303,8.15158519,2587.3,2587.2,0.0298004]
[1727310253504,9.62857726,2587.3,2587.2,0.0298004]
[1727310254028,7.19292207,2587.3,2587.2,0.0298004]
[1727310257898,10.19292207,2587.3,2587.2,0.0298004]
[1727310259817,13.03220355,2587.3,2587.2,0.0298004]
[1727310260143,10.19292207,2587.3,2587.2,0.0298004]
[1727310260328,13.03067038,2587.3,2587.2,0.0298004]
[1727310260500,13.03081568,2587.3,2587.2,0.0298004]
[1727310262412,16.67724132,2587.3,2587.2,0.0298004]
[1727310262925,13.83934771,2587.3,2587.2,0.0298004]
[1727310264130,16.67724132,2587.3,2587.2,0.0298004]
[1727310264445,10.19292207,2587.3,2587.2,0.0298004]
[1727310264606,16.26956116,2587.3,2587.2,0.0298004]
[1727310264942,13.83934771,2587.3,2587.2,0.0298004]
[1727310265165,10.19292207,2587.3,2587.2,0.0298004]
[1727310266433,9.64292207,2587.3,2587.2,0.0298004]
[1727310267577,10.19292207,2587.3,2587.2,0.0298004]
[1727310269431,13.83934771,2587.3,2587.2,0.0298004]
[1727310271777,8.89202207,2587.3,2587.2,0.0298004]
[1727310272073,7.41503,2587.3,2587.2,0.0298004]
[1727310273839,11.06145564,2587.3,2587.2,0.0298004]
[1727310274273,12.33835564,2587.3,2587.2,0.0298004]
[1727310274884,15.17318239,2587.3,2587.2,0.0298004]
[1727310275242,12.33835564,2587.3,2587.2,0.0298004]
[1727310275446,14.34931513,2587.3,2587.2,0.0298004]
[1727310275776,17.18414188,2587.3,2587.2,0.0298004]
[1727310276458,14.34931513,2587.3,2587.2,0.0298004]
[1727310276790,17.18414188,2587.3,2587.2,0.0298004]
[1727310277365,14.34931513,2587.3,2587.2,0.0298004]
[1727310278952,17.18388864,2587.3,2587.2,0.0298004]
[1727310279150,14.34931513,2587.3,2587.2,0.0298004]
[1727310281387,6.86503,2587.3,2587.2,0.0298004]
[1727310283667,7.41503,2587.3,2587.2,0.0298004]
[1727310286483,11.06145564,2587.3,2587.2,0.0298004]
[1727310286682,13.49173312,2587.3,2587.2,0.0298004]
[1727310289120,11.06145564,2587.3,2587.2,0.0298004]
[1727310289365,7.41503,2587.3,2587.2,0.0298004]
[1727310289690,4.41503,2587.3,2587.2,0.0298004]
[1727310292634,6.84717647,2587.3,2587.2,0.0298004]
[1727310293825,6.8495876,2587.3,2587.2,0.0298004]
[1727310294445,16.81749488,2587.3,2587.2,0.0298004]
[1727310294612,13.17151637,2587.3,2587.2,0.0298004]
[1727310294815,10.33075204,2587.3,2587.2,0.0298004]
[1727310295045,11.45139433,2587.3,2587.2,0.0298004]
[1727310295411,8.61063,2587.3,2587.2,0.0298004]
[1727310295867,11.45139433,2587.3,2587.2,0.0298004]
[1727310296956,10.25579433,2587.3,2587.2,0.0298004]
[1727310297157,7.41503,2587.3,2587.2,0.0298004]
[1727310297760,10.25579433,2587.3,2587.2,0.0298004]
[1727310298415,11.9380487,2587.3,2587.2,0.0298004]
[1727310298631,11.93938809,2587.3,2587.2,0.0298004]
[1727310299620,9.09728437,2587.3,2587.2,0.0298004]
[1727310300049,11.93938809,2587.3,2587.2,0.0298004]
[1727310300248,10.80572218,2587.3,2587.2,0.0298004]
[1727310301226,11.93962586,2587.3,2587.2,0.0298004]
[1727310301864,9.09728437,2587.3,2587.2,0.0298004]
[1727310302065,11.93960998,2587.3,2587.2,0.0298004]
[1727310302425,10.25735561,2587.3,2587.2,0.0298004]
[1727310302715,7.41503,2587.3,2587.2,1.2174004]
[1727310303038,2.84232561,2587.5,2587.2,1.2174004]
[1727310303364,2.43595977,2587.5,2587.3,0.06386378]
[1727310303662,3.86489,2587.4,2587.2,1.2174004]
[1727310304164,2.43595977,2587.6,2587.2,3.8949804]
[1727310304369,10.57109561,2587.8,2587.4,1.2327]
[1727310304370,6.30030977,2587.8,2587.4,1.2327]
[1727310304533,3.86435,2587.8,2587.5,0.0637473]
[1727310304884,2.43595977,2588.1,2587.7,1.2612]
[1727310305029,3.86391,2588.1,2587.9,1.2612]
[1727310305372,3.86377,2588.2,2587.9,1.2612]
[1727310305531,3.86377,2588.2,2588.0,0.06342704]
[1727310305532,3.86383,2588.1,2588.0,0.06342704]
[1727310308575,4.41383,2588.1,2588.0,0.06342704]
[1727310309282,3.86402,2588.0,2587.8,1.2968]
[1727310313107,7.50858117,2588.2,2587.8,1.2968]
[1727310313108,3.86374,2588.2,2587.8,1.2968]
[1727310313416,3.86374,2588.2,2587.8,2.199384]
[1727310313570,3.86385,2588.1,2587.8,2.199384]
[1727310313773,3.86413,2587.9,2587.8,1.2968]
[1727310314035,0.55,2587.9,2587.4,1.205]
[1727310314180,3.86461,2587.6,2587.4,1.205]
[1727310314380,7.72878,2587.8,2587.4,1.205]
[1727310314638,3.86459,2587.6,2587.4,1.205]
[1727310314911,7.72873,2587.8,2587.4,1.205]
[1727310315228,3.86436,2587.8,2587.4,1.205]
[1727310315802,3.8646,2587.6,2587.4,1.205]
[1727310316003,3.86436,2587.8,2587.4,1.205]
[1727310318834,7.72879,2587.8,2587.4,1.205]
[1727310319014,3.86436,2587.8,2587.4,1.205]
[1727310319625,3.86436,2587.8,2587.5,0.06222384]
[1727310322930,3.86445,2587.7,2587.5,0.06222384]
[1727310323124,3.86436,2587.8,2587.5,0.06222384]
[1727310325680,3.86453,2587.7,2587.5,0.06222384]
[1727310326054,3.86436,2587.8,2587.5,0.06222384]
[1727310326376,3.86458,2587.6,2587.5,0.06222384]
[1727310326881,4.41458,2587.6,2587.5,0.06222384]
[1727310327173,0.55,2587.6,2587.5,0.06222384]
[1727310328152,3.86443,2587.7,2587.5,0.06222384]
[1727310328153,0.55,2587.7,2587.5,0.06222384]
[1727310328585,3.86406,2588.0,2587.5,3.92693384]
[1727310328796,3.86367,2588.3,2587.7,3.8643]
[1727310329062,3.86369,2588.2,2587.8,1.25079472]
[1727310329643,3.0,2588.3,2587.8,1.25079472]
[1727310329862,3.86349,2588.4,2588.0,1.2865]
[1727310330582,3.86349,2588.4,2588.1,0.06219472]
[1727310331660,7.72697,2588.4,2588.1,0.06219472]
[1727310332047,3.86348,2588.4,2588.1,0.06219472]
[1727310332383,7.72695,2588.4,2588.1,0.06219472]
[1727310333550,3.86362,2588.3,2588.1,0.06219472]
[1727310336274,0.55,2588.4,2588.1,0.06219472]
[1727310336518,3.86363,2588.3,2588.1,0.06219472]
[1727310336785,3.86368,2588.2,2588.1,0.06219472]
[1727310337585,4.41368,2588.2,2588.1,0.06219472]
[1727310337944,4.4139,2588.1,2587.8,1.2973]